bitfinex/quotes_ETHUSD_20251221
["timestamp","ask_amount","ask_price","bid_price","bid_amount"]
[1766349217658,0.002,2994.8,2994.1,3.71769274]
[1766349217659,0.002,2994.8,2994.4,0.438]
[1766349217833,0.002,2994.9,2994.4,0.438]
[1766349218034,0.002,2995.2,2994.8,0.9358]
[1766349218356,0.002,2995.2,2994.9,0.3707]
[1766349218756,0.002,2995.2,2994.7,0.9358]
[1766349218928,0.002,2995.2,2995.0,1.3065]
[1766349221042,0.002,2995.2,2994.6,1.00322872]
[1766349221243,0.002,2995.2,2994.7,1.3065]
[1766349221447,0.002,2995.2,2994.8,1.3065]
[1766349225667,0.002,2995.2,2994.4,1.44125891]
[1766349225972,0.002,2995.2,2994.7,1.3065]
[1766349226772,0.002,2995.2,2994.6,0.9358]
[1766349226970,0.002,2995.2,2994.5,0.47808693]
[1766349226971,0.002,2995.2,2994.7,1.3065]
[1766349227172,0.002,2995.2,2994.6,0.9358]
[1766349227469,0.002,2995.2,2994.8,1.3065]
[1766349239295,0.002,2995.2,2994.5,2.30975891]
[1766349239296,4.57487139,2995.2,2994.5,2.30975891]
[1766349239462,4.57487139,2995.2,2994.5,2.9665348]
[1766349239657,4.57287139,2994.9,2994.4,0.438]
[1766349241167,5.57626788,2994.9,2994.4,0.438]
[1766349242594,5.57626788,2994.9,2994.0,1.3075]
[1766349242595,4.57287139,2994.6,2994.0,1.3075]
[1766349242772,1.00339649,2994.9,2994.2,0.9358]
[1766349242967,0.002,2995.2,2994.4,7.91241342]
[1766349243164,0.002,2995.2,2994.9,0.9358]
[1766349243366,1.202,2995.5,2994.5,3.77741574]
[1766349243568,0.6,2996.3,2995.4,0.9358]
[1766349243799,1.00304759,2996.2,2995.6,0.9358]
[1766349244096,0.6,2996.3,2995.7,0.438]
[1766349244260,0.6,2996.3,2995.7,1.94203077]
[1766349244465,0.6,2996.3,2995.8,0.3707]
[1766349245278,0.00202708,2996.2,2995.8,0.3707]
[1766349245896,0.6,2996.3,2995.8,3.33799459]
[1766349246097,0.002,2996.5,2995.9,0.3585]
[1766349246300,0.002,2996.7,2996.1,0.9274]
[1766349246503,4.57487139,2996.7,2996.1,0.438]
[1766349246802,4.57287139,2996.2,2995.7,1.00294363]
[1766349249609,4.57287139,2996.2,2995.7,2.28884363]
[1766349251700,4.57287139,2996.2,2995.8,1.2859]
[1766349252007,0.437,2996.3,2995.7,1.00294363]
[1766349252587,0.437,2996.3,2995.7,2.28884363]
[1766349253506,0.437,2996.3,2995.8,1.2859]
[1766349253907,0.002,2996.2,2995.8,1.2859]
[1766349254081,0.002,2996.2,2995.7,1.00294363]
[1766349254275,0.002,2996.4,2995.8,0.9274]
[1766349254491,0.439,2996.4,2996.1,0.3585]
[1766349254812,0.439,2996.4,2996.1,1.2859]
[1766349255909,0.439,2996.4,2995.4,0.9274]
[1766349256216,0.439,2996.4,2995.9,1.2859]
[1766349257415,0.439,2996.4,2995.3,3.7765403]
[1766349257718,0.439,2996.4,2995.7,1.2859]
[1766349259412,0.439,2996.4,2995.6,1.00293022]
[1766349259623,0.439,2996.4,2995.7,0.9274]
[1766349259917,0.439,2996.4,2995.8,1.2859]
[1766349260115,0.439,2996.4,2995.8,0.9274]
[1766349260315,0.439,2996.4,2995.9,1.2859]
[1766349260612,0.439,2996.4,2995.7,0.19303302]
[1766349260815,0.439,2996.4,2995.9,0.3585]
[1766349261003,0.439,2996.4,2995.8,0.9274]
[1766349261004,0.439,2996.4,2996.0,1.2859]
[1766349262411,0.93976245,2996.4,2995.8,1.2869]
[1766349264724,0.437,2996.3,2995.8,1.2869]
[1766349268323,0.437,2996.3,2995.8,0.001]
[1766349269629,0.50276245,2996.4,2995.8,0.001]
[1766349269812,0.437,2996.3,2995.8,0.001]
[1766349271809,0.437,2996.3,2995.4,0.9922]
[1766349271810,4.56862448,2996.0,2995.4,0.9922]
[1766349272008,0.45686245,2995.9,2995.4,0.9922]
[1766349272208,4.56862448,2996.0,2995.4,0.9922]
[1766349272622,1.00303417,2995.9,2995.4,0.9922]
[1766349273828,1.00303417,2995.9,2995.4,1.3645]
[1766349274418,1.00303417,2995.9,2995.4,0.3723]
[1766349274623,1.00303417,2995.9,2995.4,1.3645]
[1766349274838,1.00303417,2995.9,2995.3,0.438]
[1766349275128,1.00303417,2995.9,2995.5,0.3723]
[1766349275539,1.00303417,2995.9,2995.5,1.2788]
[1766349278534,1.00303417,2995.9,2995.3,0.438]
[1766349278829,1.00303417,2995.9,2995.5,1.2774]
[1766349279535,1.00303417,2995.9,2995.6,1.2764]
[1766349280646,0.437,2996.0,2995.6,1.2764]
[1766349281940,0.437,2996.0,2995.5,0.001]
[1766349287353,0.439,2996.0,2995.5,0.001]
[1766349291960,0.002,2996.0,2995.5,1.2774]
[1766349292259,0.439,2996.0,2995.6,1.2764]
[1766349300489,0.437,2996.3,2995.6,1.2764]
[1766349300679,0.437,2996.3,2996.0,0.9065]
[1766349300979,0.002,2996.4,2996.1,1.2764]
[1766349301177,0.002,2996.4,2995.8,1.2764]
[1766349301384,0.002,2996.4,2995.7,0.46156596]
[1766349301552,0.002,2996.7,2996.2,0.9065]
[1766349301741,0.002,2996.7,2995.7,0.438]
[1766349301742,0.002,2996.7,2996.5,1.2764]
[1766349301946,0.002,2997.2,2996.3,0.3699]
[1766349301947,0.437,2997.1,2996.3,0.3699]
[1766349302240,4.5695112,2996.9,2996.2,0.3699]
[1766349303351,4.5695112,2996.9,2996.2,1.2764]
[1766349304354,0.002,2997.1,2996.4,0.3699]
[1766349304565,0.437,2997.0,2996.6,1.2764]
[1766349305280,0.437,2997.0,2996.3,0.9674]
[1766349305446,0.437,2997.0,2996.7,1.3346]
[1766349305760,0.439,2997.1,2996.3,0.9674]
[1766349305962,0.439,2997.1,2996.5,0.9674]
[1766349306167,0.439,2997.1,2996.7,0.9674]
[1766349306367,0.439,2997.1,2996.7,1.3346]
[1766349308878,3.77556282,2997.1,2996.7,1.3346]
[1766349309778,0.439,2997.1,2996.7,1.3346]
[1766349310773,3.77556084,2997.1,2996.2,0.17144]
[1766349310948,3.77556084,2997.1,2996.1,0.438]
[1766349311251,3.77556084,2997.1,2996.4,0.9674]
[1766349311455,3.77556084,2997.1,2996.5,1.3346]
[1766349312379,3.77556084,2997.1,2996.2,0.9674]
[1766349312576,3.77556084,2997.1,2996.3,1.3346]
[1766349312874,4.48696244,2997.1,2996.3,1.3346]
[1766349314883,7.82352328,2997.1,2996.1,1.7726]
[1766349315279,7.82352328,2997.1,2996.1,0.8052]
[1766349315484,7.82352328,2997.1,2996.2,1.3346]
[1766349316380,7.82352328,2997.1,2996.1,0.438]
[1766349316584,4.57595539,2997.0,2996.3,0.3672]
[1766349316783,4.57595539,2997.0,2996.3,1.3346]
[1766349318381,0.437,2996.9,2996.4,0.9674]
[1766349318589,0.437,2996.9,2996.4,1.3346]
[1766349318755,1.23922849,2997.0,2996.2,0.9674]
[1766349318962,0.437,2996.9,2996.6,0.9674]
[1766349319162,0.437,2996.9,2996.6,1.3346]
[1766349319888,0.437,2996.9,2996.3,0.001]
[1766349320089,0.437,2996.9,2996.4,1.3346]
[1766349320390,0.437,2996.9,2996.3,0.001]
[1766349320592,0.437,2996.9,2996.4,1.3346]
[1766349323494,0.437,2996.9,2996.3,0.001]
[1766349323896,0.437,2996.9,2996.4,1.3346]
[1766349324192,0.437,2996.9,2996.3,0.001]
[1766349324584,0.002,2997.1,2996.4,1.3346]
[1766349324781,0.437,2997.0,2996.4,1.3346]
[1766349325169,0.437,2997.0,2996.3,0.001]
[1766349325370,0.437,2997.0,2996.4,0.9674]
[1766349325564,0.437,2997.0,2996.6,0.9674]
[1766349325770,0.002,2997.1,2996.8,1.3346]
[1766349325989,0.002,2997.2,2996.7,0.34]
[1766349326176,0.439,2997.2,2997.0,1.3356]
[1766349327393,0.002,2997.1,2997.0,1.3356]
[1766349328370,0.002,2997.1,2996.4,0.001]
[1766349328579,4.56676161,2996.9,2996.4,0.001]
[1766349328779,4.56876161,2997.1,2996.4,0.001]
[1766349328991,5.73681949,2997.1,2996.4,0.001]
[1766349329392,9.07346323,2997.1,2996.4,1.3366]
[1766349330593,0.437,2997.0,2996.5,1.3356]
[1766349332025,9.07346323,2997.1,2996.5,1.3356]
[1766349332186,0.437,2997.0,2996.5,1.3356]
[1766349335811,0.439,2997.0,2996.5,1.3356]
[1766349336810,0.439,2997.0,2996.5,1.3494]
[1766349336811,0.002,2997.0,2996.5,1.3494]
[1766349337116,0.439,2997.0,2996.7,0.9845]
[1766349337321,0.439,2997.0,2996.7,1.3494]
[1766349338026,0.002,2997.0,2996.7,1.3494]
[1766349338319,0.002,2997.1,2996.5,0.9845]
[1766349338503,0.002,2997.1,2996.8,0.3649]
[1766349338703,0.002,2997.1,2996.8,1.3494]
[1766349340723,0.002,2997.1,2996.4,0.001]
[1766349340724,0.002,2997.1,2996.5,1.3494]
[1766349340922,0.002,2997.1,2996.4,0.001]
[1766349341224,4.56564303,2996.9,2996.4,0.001]
[1766349341627,5.06610733,2996.9,2996.4,0.001]
[1766349341828,4.56564303,2996.6,2995.7,0.3649]
[1766349342127,4.56564303,2996.3,2995.5,0.001]
[1766349342428,4.56564303,2996.0,2995.5,0.001]
[1766349343205,4.56564303,2995.7,2995.2,0.001]
[1766349343528,0.437,2995.6,2995.2,0.001]
[1766349344095,7.67875508,2996.0,2995.2,0.001]
[1766349344096,4.56564303,2995.9,2995.2,0.001]
[1766349344298,4.34092186,2996.0,2995.3,1.3494]
[1766349344498,0.437,2995.9,2995.3,1.3494]
[1766349344696,4.34097554,2996.0,2995.3,0.9845]
[1766349344909,3.33783739,2996.0,2995.6,1.3494]
[1766349346336,6.67567478,2996.0,2995.2,0.001]
[1766349346522,11.95255832,2996.0,2995.2,1.3504]
[1766349346711,11.95255832,2996.0,2995.3,1.3494]
[1766349347326,7.38691529,2996.0,2995.3,1.3494]
[1766349349921,11.95255832,2996.0,2995.2,0.001]
[1766349350128,1.23895583,2995.9,2995.2,0.001]
[1766349350438,4.56564303,2995.8,2995.2,0.001]
[1766349350731,0.437,2995.7,2995.2,0.001]
[1766349350939,0.437,2995.7,2995.3,0.001]
[1766349352211,3.3382294,2995.6,2995.3,0.001]
[1766349353721,3.77515517,2995.7,2995.3,0.001]
[1766349357106,0.437,2995.7,2995.3,0.001]
[1766349357310,0.437,2995.7,2995.4,1.3494]
[1766349358551,0.437,2995.8,2995.4,1.3494]
[1766349358916,0.437,2995.8,2995.3,0.001]
[1766349359411,3.77509762,2995.8,2995.3,0.001]
[1766349359614,4.62367209,2995.8,2995.3,0.001]
[1766349364439,4.62567209,2995.8,2995.3,0.001]
[1766349364636,7.96376971,2995.8,2995.3,0.001]
[1766349364949,0.437,2995.7,2995.3,1.3504]
[1766349365250,0.437,2995.7,2995.4,1.313]
[1766349369942,3.7751485,2995.7,2995.3,0.001]
[1766349372857,3.7771485,2995.7,2995.3,0.001]
[1766349374637,0.439,2995.7,2995.3,1.314]
[1766349377774,0.439,2995.7,2995.3,0.001]
[1766349377940,4.15505664,2995.7,2995.2,0.356]
[1766349378141,4.15505664,2995.7,2995.2,1.313]
[1766349381373,4.15505664,2995.7,2995.3,0.001]
[1766349386482,4.57042148,2995.6,2994.6,0.439]
[1766349386650,1.20636338,2995.5,2994.6,0.001]
[1766349387562,6.67690458,2995.4,2994.6,1.2959]
[1766349387774,0.437,2995.3,2994.6,1.2959]
[1766349387976,0.437,2995.3,2994.6,0.001]
[1766349388260,0.437,2995.3,2994.8,1.2959]
[1766349389965,3.7756453,2995.3,2994.8,1.2959]
[1766349390167,4.6076914,2995.3,2994.8,1.2959]
[1766349393273,1.0033126,2995.6,2994.8,1.2959]
[1766349393274,1.0033126,2995.6,2994.8,0.001]
[1766349393464,0.439,2995.7,2994.9,1.2949]
[1766349393656,0.439,2995.7,2994.8,0.001]
[1766349393657,0.439,2995.7,2994.8,3.340109]
[1766349394283,0.439,2995.7,2995.1,0.9293]
[1766349394474,0.439,2995.7,2995.3,1.2949]
[1766349395071,3.34011991,2995.7,2994.8,0.001]
[1766349395270,0.002,2995.7,2995.0,1.2924]
[1766349395488,0.002,2995.7,2995.2,0.9431]
[1766349395686,0.002,2995.7,2995.3,0.3493]
[1766349395892,0.002,2995.7,2995.5,0.3493]
[1766349396189,0.002,2995.7,2995.5,1.2924]
[1766349398966,3.33789512,2995.9,2994.9,0.37782073]
[1766349399295,3.33789512,2995.9,2995.6,0.3493]
[1766349399296,0.437,2995.9,2995.6,0.3493]
[1766349399493,0.437,2995.9,2995.6,1.2924]
[1766349401290,7.11212182,2996.2,2995.3,0.9431]
[1766349401488,7.11212182,2996.2,2995.5,0.9431]
[1766349401688,7.11212182,2996.2,2995.7,0.9431]
[1766349401867,7.96419184,2996.2,2995.7,1.2924]
[1766349402066,0.002,2995.9,2995.7,1.2924]
[1766349404372,0.002,2995.9,2995.2,0.438]
[1766349404373,0.002,2995.9,2995.4,0.3493]
[1766349404682,0.002,2995.9,2995.5,1.2924]
[1766349407209,0.002,2995.9,2995.2,0.438]
[1766349407409,0.002,2995.9,2995.3,1.2924]
[1766349407592,0.002,2995.9,2995.4,0.17304]
[1766349407791,0.002,2995.9,2995.6,0.9431]
[1766349408000,0.002,2995.9,2995.7,1.2924]
[1766349422106,3.33689268,2996.8,2995.9,1.2924]
[1766349422410,3.33689268,2996.8,2996.2,0.3493]
[1766349422411,7.67662506,2996.8,2996.2,0.3493]
[1766349422597,0.8209357,2996.7,2995.7,0.9431]
[1766349422797,0.437,2996.7,2996.0,0.3493]
[1766349422995,0.437,2996.7,2996.3,0.9431]
[1766349423198,3.77411244,2996.7,2996.3,1.2924]
[1766349424093,7.11122488,2996.7,2996.3,1.2924]
[1766349424299,6.67422488,2996.7,2996.3,1.2924]
[1766349424487,7.11122488,2996.7,2996.3,1.2924]
[1766349424806,3.77411244,2996.7,2996.3,1.2924]
[1766349425223,3.33711244,2996.7,2996.3,1.2924]
[1766349426590,7.48781151,2996.7,2995.6,0.439]
[1766349427416,8.49065121,2996.7,2995.6,0.439]
[1766349428789,8.49065121,2996.7,2995.7,0.9184]
[1766349429089,8.49065121,2996.7,2995.9,0.9184]
[1766349429303,8.49065121,2996.7,2996.0,1.2926]
[1766349429502,0.89276512,2996.6,2996.0,1.2926]
[1766349431192,4.2299152,2996.6,2996.0,1.2926]
[1766349431392,4.2299152,2996.6,2995.7,1.2926]
[1766349431594,3.33715008,2996.6,2995.8,0.3742]
[1766349431925,3.33715008,2996.6,2996.1,1.2926]
[1766349433412,3.3390084,2996.7,2996.1,1.2926]
[1766349433614,6.6760168,2996.7,2996.1,1.2926]
[1766349435226,0.437,2996.6,2996.1,1.2926]
[1766349435527,3.77421171,2996.6,2996.1,1.2926]
[1766349437432,4.58581769,2996.6,2996.1,1.2926]
[1766349438434,7.9230294,2996.6,2996.1,1.2926]
[1766349440024,7.9230294,2996.6,2996.0,0.3742]
[1766349440230,7.9230294,2996.6,2996.0,1.2926]
[1766349442733,7.9230294,2996.6,2996.0,1.2936]
[1766349444308,4.12983986,2996.5,2996.0,1.2936]
[1766349446029,4.12983986,2996.5,2996.0,0.001]
[1766349446228,3.77413694,2996.6,2996.1,1.2926]
[1766349451241,3.77613694,2996.6,2996.1,1.2926]
[1766349452352,3.77613694,2996.6,2996.1,1.327]
[1766349453039,3.77613694,2996.6,2996.0,0.001]
[1766349453243,3.77613694,2996.6,2996.1,1.327]
[1766349453538,4.58793632,2996.6,2996.0,0.001]
[1766349453738,0.002,2996.6,2996.2,0.3607]
[1766349453937,0.002,2996.6,2996.2,1.327]
[1766349454138,3.33913631,2996.6,2996.2,1.327]
[1766349454637,3.33913631,2996.6,2996.0,0.001]
[1766349454837,0.66781542,2996.5,2996.0,1.328]
[1766349455210,0.66781542,2996.5,2995.6,0.439]
[1766349455211,0.437,2996.4,2995.6,0.001]
[1766349455443,3.33744952,2996.3,2995.7,1.3641]
[1766349455620,3.33744952,2996.3,2995.9,1.3641]
[1766349455824,3.77437314,2996.4,2995.9,1.3641]
[1766349456017,4.65279771,2996.4,2995.8,0.371]
[1766349456232,4.65279771,2996.4,2995.8,1.3641]
[1766349459144,4.65279771,2996.4,2995.8,1.3651]
[1766349461753,7.99017085,2996.4,2995.8,1.3651]
[1766349461938,7.99017085,2996.4,2995.8,0.001]
[1766349462143,0.86579863,2996.3,2995.8,0.001]
[1766349462636,4.20334461,2996.3,2995.8,0.001]
[1766349463215,7.54089059,2996.3,2995.8,0.001]
[1766349463420,4.64034461,2996.3,2995.8,0.001]
[1766349469055,0.86579863,2996.3,2995.8,0.001]
[1766349469365,0.437,2996.3,2995.8,0.001]
[1766349471469,0.437,2996.3,2995.8,1.3651]
[1766349477372,3.33938482,2996.4,2995.8,1.3651]
[1766349477540,0.437,2996.3,2995.8,1.3651]
[1766349480883,3.77447864,2996.3,2995.8,1.3651]
[1766349481478,4.58614605,2996.3,2995.8,1.3651]
[1766349481688,1.24866741,2996.3,2995.8,1.3651]
[1766349481887,0.387,2996.3,2995.8,1.3651]
[1766349483590,3.33937054,2996.4,2995.8,1.3651]
[1766349483777,0.437,2996.3,2995.8,1.3651]
[1766349484894,0.439,2996.3,2995.8,1.3651]
[1766349485585,0.002,2996.3,2995.8,1.3651]
[1766349485890,0.002,2996.3,2996.0,1.2959]
[1766349500284,0.002,2996.3,2995.8,0.001]
[1766349500597,0.002,2996.3,2996.0,0.001]
[1766349506233,0.002,2996.3,2996.0,1.3419]
[1766349508594,0.002,2996.3,2996.0,0.001]
[1766349508802,0.002,2996.3,2996.1,1.3409]
[1766349511733,0.002,2996.3,2996.0,0.001]
[1766349513046,0.002,2996.3,2996.0,1.3419]
[1766349524347,1.00491681,2996.3,2996.0,1.3419]
[1766349529252,1.00491681,2996.3,2996.0,0.001]
[1766349542067,0.002,2996.3,2996.2,1.3107]
[1766349542252,0.002,2996.3,2996.0,0.001]
[1766349542458,5.00519164,2996.2,2995.3,0.001]
[1766349542658,3.33778371,2996.0,2995.3,0.001]
[1766349542880,3.33778371,2996.0,2994.9,0.439]
[1766349542881,4.56819164,2995.9,2994.9,0.439]
[1766349543172,1.40871595,2995.9,2994.9,1.3107]
[1766349543342,0.437,2995.8,2994.9,1.3107]
[1766349543840,1.44021195,2995.8,2994.9,1.3107]
[1766349544039,0.18457159,2995.7,2994.9,1.3107]
[1766349544569,1.00321195,2995.6,2994.9,1.3107]
[1766349545972,3.33834084,2995.5,2994.9,1.3107]
[1766349546176,0.437,2995.4,2994.9,1.3107]
[1766349546670,1.00321195,2995.3,2994.9,1.3107]
[1766349549259,1.00321195,2995.3,2994.9,1.3117]
[1766349561673,1.00321195,2995.3,2995.0,1.3142]
[1766349561874,1.00321195,2995.3,2994.9,0.001]
[1766349562090,1.00321195,2995.3,2995.0,1.3142]
[1766349569289,1.00321195,2995.3,2994.9,0.001]
[1766349570506,4.34179948,2995.3,2994.9,0.001]
[1766349570799,0.8915345,2995.2,2994.9,0.001]
[1766349570978,0.8915345,2995.2,2994.6,1.3152]
[1766349570979,4.23025916,2995.2,2994.6,1.3152]
[1766349571172,4.66825916,2995.2,2994.9,0.001]
[1766349571370,4.23025916,2995.2,2994.9,0.001]
[1766349571570,1.42632174,2995.1,2994.9,0.001]
[1766349571970,0.42302592,2995.1,2994.9,0.001]
[1766349572173,1.00329582,2995.0,2994.9,0.001]
[1766349573392,1.00329582,2995.0,2994.5,0.439]
[1766349576500,1.00329582,2995.0,2994.6,1.2745]
[1766349578216,1.00329582,2995.0,2994.5,0.439]
[1766349578619,1.00329582,2995.0,2994.5,1.7135]
[1766349584927,0.42302592,2995.1,2994.5,1.7135]
[1766349585304,1.42632174,2995.1,2994.5,1.7135]
[1766349587823,0.002,2995.0,2994.5,1.7135]
[1766349589522,0.002,2995.0,2994.5,0.439]
[1766349589720,0.002,2995.0,2994.5,1.7135]
[1766349590532,0.002,2995.0,2994.5,0.439]
[1766349590706,0.002,2995.0,2994.5,1.7135]
[1766349598141,0.002,2995.0,2994.4,0.001]
[1766349598142,5.05096542,2995.0,2994.4,0.001]
[1766349598353,8.38996896,2995.0,2994.4,0.001]
[1766349598647,9.39331176,2995.0,2994.4,0.001]
[1766349600719,9.39331176,2995.0,2994.4,1.2755]
[1766349600921,6.05430822,2995.0,2994.4,1.2755]
[1766349601144,0.98161978,2994.9,2994.4,1.2755]
[1766349601347,0.002,2995.0,2994.4,0.001]
[1766349601647,0.002,2995.0,2994.7,0.9229]
[1766349601849,0.002,2995.0,2994.8,1.2745]
[1766349602019,6.6753446,2996.1,2995.2,0.3516]
[1766349602220,1.10573446,2996.0,2995.4,1.2745]
[1766349602446,5.67799363,2996.0,2995.4,1.2745]
[1766349602751,3.33789512,2995.9,2995.4,1.2745]
[1766349602923,6.67579024,2995.9,2995.4,1.2745]
[1766349603319,4.34277542,2996.2,2995.0,1.00311467]
[1766349603551,0.002,2996.2,2995.4,1.2745]
[1766349603727,0.002,2996.2,2995.5,0.17125]
[1766349604047,3.33957641,2996.2,2995.4,0.438]
[1766349604347,3.33957641,2996.2,2995.7,0.3516]
[1766349604554,0.002,2996.2,2995.7,1.2745]
[1766349604724,4.57225917,2995.9,2995.1,1.2745]
[1766349604924,4.57225917,2995.9,2995.2,0.438]
[1766349605237,5.07328509,2995.9,2995.2,1.7125]
[1766349606349,0.50102592,2995.9,2995.2,1.7125]
[1766349606549,4.57225917,2996.1,2995.2,0.438]
[1766349606850,0.437,2996.0,2995.4,1.2727]
[1766349609357,0.437,2996.0,2995.3,1.2727]
[1766349609540,0.437,2996.0,2995.4,0.9291]
[1766349609738,0.437,2996.0,2995.5,1.2727]
[1766349609944,1.31588641,2996.0,2995.5,1.2727]
[1766349610256,0.002,2995.9,2995.5,1.2727]
[1766349613457,0.002,2995.9,2995.3,1.2727]
[1766349614228,0.002,2995.9,2995.1,0.44]
[1766349614429,0.002,2995.9,2995.1,1.7127]
[1766349615858,1.25856279,2995.9,2995.1,1.7127]
[1766349616358,5.03348722,2995.9,2995.1,1.7127]
[1766349619061,5.03348722,2995.9,2995.1,1.7137]
[1766349626274,1.69556279,2995.9,2995.1,1.7137]
[1766349627578,1.69556279,2995.9,2995.1,0.441]
[1766349627874,1.69556279,2995.9,2995.2,1.3098]
[1766349628255,2.69862715,2995.9,2995.2,1.3098]
[1766349628988,1.44206436,2995.9,2995.1,0.001]
[1766349629283,1.44206436,2995.9,2995.2,1.3098]
[1766349629489,0.002,2995.9,2995.3,0.3511]
[1766349629788,0.439,2995.9,2995.6,1.3098]
[1766349630094,0.002,2995.9,2995.6,1.3098]
[1766349630287,0.002,2995.9,2995.3,1.3098]
[1766349630288,3.33990383,2995.9,2995.3,1.3098]
[1766349630458,0.002,2995.9,2995.3,1.3098]
[1766349630859,0.002,2995.9,2995.2,0.71607764]
[1766349631166,0.002,2995.9,2995.3,0.9587]
[1766349631379,0.002,2995.9,2995.4,0.3511]
[1766349631580,0.002,2995.9,2995.4,1.3098]
[1766349636658,0.002,2995.9,2995.2,0.71607764]
[1766349637095,0.002,2995.9,2995.3,1.3184]
[1766349637295,0.002,2995.9,2995.3,0.20354776]
[1766349637491,0.002,2995.9,2995.6,0.3448]
[1766349637689,0.002,2995.9,2995.6,1.3184]
[1766349649182,0.002,2995.9,2995.2,0.71607764]
[1766349649383,0.002,2995.9,2995.4,0.3448]
[1766349649601,0.002,2995.9,2995.4,1.3184]
[1766349649907,3.33800654,2995.8,2995.2,1.3184]
[1766349650108,3.33800654,2995.8,2995.1,0.001]
[1766349650311,3.33800654,2995.8,2995.2,0.9736]
[1766349650513,3.33800654,2995.8,2995.3,0.3448]
[1766349651215,4.05138486,2995.9,2995.3,0.3448]
[1766349651519,4.05138486,2995.9,2995.4,0.001]
[1766349664929,0.71344184,2995.9,2995.4,1.3194]
[1766349665134,0.002,2995.9,2995.5,1.261]
[1766349666232,3.33990611,2995.9,2995.5,1.261]
[1766349666938,0.002,2995.9,2995.5,1.261]
[1766349674344,0.002,2995.9,2995.4,0.001]
[1766349674545,0.002,2995.9,2995.5,1.261]
[1766349676746,0.002,2995.9,2995.5,0.9179]
[1766349676948,0.002,2995.9,2995.5,1.261]
[1766349677250,0.002,2995.9,2995.6,1.261]
[1766349683640,0.002,2995.9,2995.4,1.262]
[1766349688851,0.002,2995.9,2995.5,1.261]
[1766349694253,0.002,2995.9,2995.5,1.3234]
[1766349697958,0.002,2995.9,2995.4,0.001]
[1766349698138,0.002,2995.9,2995.5,1.3524]
[1766349698335,0.002,2995.9,2995.5,0.9796]
[1766349698552,0.002,2995.9,2995.6,0.3728]
[1766349698758,0.002,2995.9,2995.6,1.3524]
[1766349706361,0.002,2995.9,2995.4,1.3534]
[1766349706857,1.00502076,2995.9,2995.4,1.3534]
[1766349707062,1.00502076,2995.9,2995.5,1.3524]
[1766349707243,0.002,2996.2,2995.4,0.001]
[1766349707444,1.00295369,2996.1,2995.8,0.9796]
[1766349707645,1.00295369,2996.1,2995.9,1.3524]
[1766349709162,1.00495369,2996.1,2995.9,1.3524]
[1766349713973,0.002,2996.1,2995.9,1.3524]
[1766349714549,3.33967378,2996.1,2995.6,1.3524]
[1766349715164,1.00291011,2996.0,2995.6,1.3524]
[1766349715363,1.00291011,2996.0,2995.7,1.3524]
[1766349715564,4.56904512,2995.8,2995.1,0.001]
[1766349715795,3.3382294,2995.6,2995.1,0.001]
[1766349715952,6.6764588,2995.6,2995.1,0.001]
[1766349716149,1.00315827,2995.5,2995.1,0.001]
[1766349717085,1.00315827,2995.5,2995.4,0.001]
[1766349717969,4.34149911,2995.5,2995.4,0.001]
[1766349718277,5.15952339,2995.5,2995.4,0.001]
[1766349724992,1.82118255,2995.5,2995.4,0.001]
[1766349725199,1.00315827,2995.5,2995.4,0.001]
[1766349742924,0.437,2995.8,2995.4,0.001]
[1766349742925,3.77503962,2995.8,2995.4,0.001]
[1766349743236,0.002,2995.5,2995.4,0.3464]
[1766349744403,0.002,2995.5,2995.2,0.3464]
[1766349745131,0.002,2995.5,2995.2,1.2656]
[1766349746542,0.002,2995.5,2995.2,0.946]
[1766349746710,0.002,2995.5,2995.2,1.2897]
[1766349747245,0.002,2995.5,2995.3,0.3437]
[1766349747621,0.002,2995.5,2995.3,1.2897]
[1766349751770,0.002,2995.5,2995.3,1.2907]
[1766349761752,0.002,2995.5,2995.3,0.001]
[1766349771666,0.002,2995.5,2995.3,1.3366]
[1766349774264,0.002,2995.5,2995.1,0.001]
[1766349776267,0.002,2995.5,2995.1,1.3366]
[1766349776763,0.002,2995.5,2995.3,0.001]
[1766349787956,0.002,2995.5,2995.3,1.3358]
[1766349791192,0.002,2995.5,2995.3,0.001]
[1766349795701,0.002,2995.5,2995.3,1.3358]
[1766349801006,1.00315492,2995.8,2995.4,1.3348]
[1766349801208,0.438,2995.9,2995.6,1.3348]
[1766349801392,1.44112137,2995.9,2995.6,1.3348]
[1766349803073,3.77780299,2996.0,2995.6,1.3348]
[1766349803475,4.78091095,2996.0,2995.6,1.3348]
[1766349804405,0.438,2995.9,2995.6,1.3348]
[1766349810482,0.44,2995.9,2995.6,1.3348]
[1766349812316,3.77789841,2995.9,2995.6,1.3348]
[1766349813018,3.77789841,2995.9,2995.5,0.001]
[1766349813212,4.59016634,2995.9,2995.5,0.001]
[1766349814022,4.59016634,2995.9,2995.5,1.2781]
[1766349818030,4.15216634,2995.9,2995.5,1.2781]
[1766349819214,0.002,2995.9,2995.5,1.2781]
[1766349820856,0.002,2995.9,2995.0,0.001]
[1766349820857,0.407504,2995.9,2995.0,0.001]
[1766349821001,4.97656715,2995.9,2994.5,0.001]